bitfinex/quotes_BTCUSD_20240712
["timestamp","ask_amount","ask_price","bid_price","bid_amount"]
[1720780308849,0.06,57165.0,57156.0,0.062]
[1720780309053,0.06,57161.0,57152.0,0.0815]
[1720780309400,0.377865,57165.0,57153.0,0.01915]
[1720780309401,0.06,57163.0,57153.0,0.01915]
[1720780309554,0.174935,57164.0,57153.0,0.01915]
[1720780309757,0.174929,57166.0,57157.0,0.01915]
[1720780310136,0.174929,57166.0,57156.0,0.001]
[1720780310137,0.00083,57167.0,57160.0,0.01915]
[1720780310342,0.00083,57167.0,57161.0,0.0662]
[1720780310541,0.06,57165.0,57161.0,0.0662]
[1720780310743,0.234929,57166.0,57161.0,0.0672]
[1720780310990,0.06,57161.0,57156.0,0.001]
[1720780311203,0.006,57164.0,57153.0,0.01915]
[1720780311204,0.06,57164.0,57153.0,0.01915]
[1720780311458,0.234932,57165.0,57154.0,0.194115]
[1720780311709,0.349862,57166.0,57154.0,0.01915]
[1720780311710,0.234939,57163.0,57154.0,0.01915]
[1720780311880,0.234939,57163.0,57152.0,0.256469]
[1720780311881,0.06,57161.0,57153.0,0.001]
[1720780312325,0.06,57161.0,57152.0,0.10065]
[1720780312513,0.3499,57160.0,57152.0,0.0815]
[1720780312716,0.3499,57160.0,57141.0,0.06]
[1720780312717,0.349944,57152.0,57147.0,0.0776]
[1720780312936,0.349944,57152.0,57145.0,0.0626]
[1720780313121,0.409935,57154.0,57145.0,0.0626]
[1720780313318,0.06,57153.0,57145.0,0.0626]
[1720780313536,0.006,57159.0,57137.0,0.00306353]
[1720780313537,0.437976,57147.0,57137.0,0.00306353]
[1720780313680,0.175014,57138.0,57137.0,0.00306353]
[1720780314310,0.006,57145.0,57131.0,0.0832]
[1720780314311,0.350049,57135.0,57131.0,0.0832]
[1720780314435,0.350049,57135.0,57127.0,0.066413]
[1720780314436,0.17510237,57131.0,57127.0,0.066413]
[1720780315044,6.637e-05,57131.0,57127.0,0.066413]
[1720780316064,6.637e-05,57131.0,57127.0,0.078413]
[1720780316323,0.17510337,57131.0,57127.0,0.088413]
[1720780317539,6.637e-05,57131.0,57127.0,0.088413]
[1720780317718,0.175039,57130.0,57127.0,0.088413]
[1720780318144,0.17510337,57131.0,57127.0,0.088413]
[1720780318520,0.17510337,57131.0,57127.0,0.107563]
[1720780318728,0.17510337,57131.0,57127.0,0.078413]
[1720780318926,0.175039,57130.0,57127.0,0.078413]
[1720780319128,0.175039,57130.0,57127.0,0.089413]
[1720780319387,0.175039,57130.0,57127.0,0.096563]
[1720780319578,0.175039,57130.0,57127.0,0.08548878]
[1720780319759,0.175039,57130.0,57127.0,0.06633878]
[1720780320342,6.637e-05,57131.0,57127.0,0.06633878]
[1720780320343,6.637e-05,57131.0,57130.0,0.01915]
[1720780320619,6.637e-05,57131.0,57127.0,0.28427279]
[1720780320620,0.35014037,57131.0,57127.0,0.06633878]
[1720780320826,6.637e-05,57131.0,57127.0,0.08033878]
[1720780321033,0.17510437,57131.0,57129.0,0.01915]
[1720780321231,0.17510437,57131.0,57127.0,0.09033878]
[1720780321232,6.637e-05,57131.0,57127.0,0.09033878]
[1720780321432,0.175043,57129.0,57127.0,0.08033878]
[1720780321633,0.175043,57129.0,57127.0,0.11992611]
[1720780321761,0.175043,57129.0,57127.0,0.13192611]
[1720780321964,0.175043,57129.0,57127.0,0.07833878]
[1720780322166,0.350081,57130.0,57127.0,0.07833878]
[1720780322167,0.875227,57128.0,57127.0,0.01283878]
[1720780322548,0.525136,57128.0,57127.0,0.01083878]
[1720780323399,0.875227,57128.0,57127.0,0.01083878]
[1720780324033,0.175042,57129.0,57127.0,0.01083878]
[1720780324297,6.637e-05,57131.0,57130.0,0.369228]
[1720780324488,6.637e-05,57131.0,57130.0,0.608867]
[1720780325064,6.637e-05,57131.0,57130.0,0.08375]
[1720780325267,6.637e-05,57131.0,57130.0,0.0396]
[1720780326132,6.637e-05,57131.0,57130.0,0.0536]
[1720780326334,6.637e-05,57131.0,57130.0,0.578717]
[1720780326528,6.637e-05,57131.0,57130.0,0.673167]
[1720780326644,6.637e-05,57131.0,57130.0,0.323089]
[1720780326887,6.637e-05,57131.0,57130.0,0.1289]
[1720780327096,6.637e-05,57131.0,57130.0,0.1409]
[1720780327294,6.637e-05,57131.0,57130.0,0.1269]
[1720780327499,6.637e-05,57131.0,57130.0,0.1149]
[1720780327788,6.637e-05,57131.0,57130.0,0.13196353]
[1720780327978,6.637e-05,57131.0,57130.0,0.14596353]
[1720780328168,6.637e-05,57131.0,57130.0,0.16205]
[1720780328390,6.637e-05,57131.0,57130.0,0.673167]
[1720780328981,0.350051,57135.0,57130.0,0.1289]
[1720780329180,0.175031,57133.0,57131.0,0.00306353]
[1720780329724,0.175031,57133.0,57130.0,0.14805]
[1720780330087,0.350039,57137.0,57135.0,0.01915]
[1720780330290,0.350039,57137.0,57131.0,0.175035]
[1720780330291,0.525056,57137.0,57136.0,0.01915]
[1720780330519,0.525056,57137.0,57132.0,0.00306353]
[1720780330520,0.175001,57143.0,57139.0,0.02221353]
[1720780330704,0.35596,57150.0,57139.0,0.02221353]
[1720780330705,0.174998,57144.0,57141.0,0.1406]
[1720780330879,0.524998,57143.0,57142.0,0.00306353]
[1720780331307,0.524998,57143.0,57136.0,0.1422]
[1720780331308,0.175016,57138.0,57136.0,0.1422]
[1720780331515,0.350026,57139.0,57136.0,0.1422]
[1720780331752,0.350026,57139.0,57137.0,0.00306353]
[1720780332160,0.175011,57139.0,57137.0,0.00306353]
[1720780332334,0.175011,57139.0,57136.0,0.1422]
[1720780332536,0.175011,57139.0,57137.0,0.00306353]
[1720780332913,0.350015,57141.0,57136.0,0.1422]
[1720780333114,0.175015,57138.0,57136.0,0.1422]
[1720780333332,0.175013,57139.0,57136.0,0.1422]
[1720780333508,0.175009,57140.0,57139.0,7.666e-05]
[1720780333935,0.175009,57140.0,57139.0,0.01922666]
[1720780334110,0.875043,57140.0,57139.0,7.666e-05]
[1720780334341,0.9685473,57140.0,57139.0,7.666e-05]
[1720780334548,1.22506,57140.0,57139.0,7.666e-05]
[1720780334923,1.28506,57140.0,57139.0,7.666e-05]
[1720780335149,1.28506,57140.0,57139.0,0.00707666]
[1720780335349,1.28506,57140.0,57139.0,0.01207666]
[1720780336024,1.28506,57140.0,57139.0,0.00507666]
[1720780336859,1.416366,57140.0,57139.0,7.666e-05]
[1720780338210,1.897383,57140.0,57139.0,7.666e-05]
[1720780339172,2.097383,57140.0,57139.0,7.666e-05]
[1720780339532,1.898213,57140.0,57139.0,7.666e-05]
[1720780340359,2.098213,57140.0,57139.0,7.666e-05]
[1720780341540,1.898213,57140.0,57139.0,7.666e-05]
[1720780341739,1.766907,57140.0,57139.0,7.666e-05]
[1720780342395,1.591898,57140.0,57139.0,7.666e-05]
[1720780342582,1.766907,57140.0,57139.0,7.666e-05]
[1720780343177,1.966907,57140.0,57139.0,7.666e-05]
[1720780343376,2.1371444,57140.0,57139.0,7.666e-05]
[1720780344354,2.4871614,57140.0,57139.0,7.666e-05]
[1720780344621,2.5871614,57140.0,57139.0,7.666e-05]
[1720780345073,2.3871614,57140.0,57139.0,7.666e-05]
[1720780345687,2.2871614,57140.0,57139.0,7.666e-05]
[1720780345933,2.3871614,57140.0,57139.0,7.666e-05]
[1720780346130,2.5871614,57140.0,57139.0,7.666e-05]
[1720780347283,1.735907,57140.0,57139.0,7.666e-05]
[1720780347656,1.28589,57140.0,57139.0,7.666e-05]
[1720780349453,1.28589,57140.0,57126.0,0.00306353]
[1720780349454,0.06,57128.0,57126.0,0.00306353]
[1720780349697,1.516318,57128.0,57118.0,0.0664]
[1720780349836,2.0366464,57128.0,57118.0,0.0664]
[1720780350633,2.0366464,57128.0,57127.0,0.01083878]
[1720780350634,2.1646464,57128.0,57127.0,0.01083878]
[1720780350916,2.5147374,57128.0,57127.0,0.01083878]
[1720780351100,2.5147374,57128.0,57127.0,0.00083878]
[1720780352891,1.225661,57112.0,57111.0,0.009086]
[1720780353096,1.285661,57112.0,57111.0,0.009086]
[1720780353550,1.225661,57112.0,57111.0,0.009086]
[1720780354504,1.225661,57112.0,57111.0,0.014086]
[1720780354888,1.225661,57112.0,57111.0,0.021086]
[1720780356220,0.175094,57112.0,57111.0,0.167286]
[1720780356424,0.525283,57112.0,57111.0,0.167286]
[1720780356787,0.525283,57112.0,57111.0,0.162286]
[1720780357477,0.526283,57112.0,57111.0,0.171286]
[1720780358495,0.176094,57112.0,57111.0,0.171286]
[1720780358696,0.526283,57112.0,57111.0,0.171286]
[1720780358901,0.526283,57112.0,57111.0,0.164286]
[1720780359303,0.526283,57112.0,57111.0,0.171286]
[1720780359515,0.526283,57112.0,57111.0,0.162286]
[1720780359516,0.525283,57112.0,57111.0,0.162286]
[1720780359927,0.525283,57112.0,57111.0,0.190436]
[1720780360556,0.350179,57114.0,57112.0,0.01915]
[1720780360764,0.175091,57113.0,57112.0,0.01915]
[1720780361179,0.350179,57114.0,57112.0,0.16315]
[1720780361180,0.175088,57114.0,57112.0,0.16315]
[1720780361409,0.350173,57115.0,57112.0,0.16315]
[1720780361410,0.175091,57113.0,57112.0,0.16315]
[1720780361615,0.525273,57113.0,57112.0,0.16315]
[1720780362849,0.350173,57115.0,57112.0,0.16315]
[1720780363049,0.350171,57115.0,57113.0,0.00306353]
[1720780363380,0.525264,57114.0,57113.0,0.00306353]
[1720780363582,0.175091,57113.0,57112.0,0.17215]
[1720780363783,0.175091,57113.0,57112.0,0.16315]
[1720780363982,0.175091,57113.0,57112.0,0.17015]
[1720780364715,0.175089,57114.0,57112.0,0.17015]
[1720780364910,0.175091,57113.0,57112.0,0.18315]
[1720780365335,0.350146,57120.0,57116.0,0.01915]
[1720780365536,0.350153,57118.0,57117.0,0.00306353]
[1720780365740,0.350153,57118.0,57112.0,0.17615]
[1720780365741,0.175082,57117.0,57113.0,0.00306353]
[1720780366535,0.175082,57117.0,57116.0,0.002]
[1720780367019,0.175082,57117.0,57113.0,0.00306353]
[1720780367521,0.175082,57117.0,57113.0,0.01606353]
[1720780367984,0.175082,57117.0,57113.0,0.00906353]
[1720780368198,0.175082,57117.0,57116.0,0.009]
[1720780368432,0.350149,57119.0,57113.0,0.00906353]
[1720780368433,0.06,57119.0,57113.0,0.00906353]
[1720780368639,0.0084367,57120.0,57112.0,0.144]
[1720780368640,0.175091,57113.0,57112.0,0.144]
[1720780368869,0.525273,57113.0,57112.0,0.144]
[1720780369610,0.175091,57113.0,57112.0,0.144]
[1720780370077,1.225637,57113.0,57112.0,0.0804]
[1720780370479,1.285637,57113.0,57112.0,0.0934]
[1720780370680,1.285637,57113.0,57112.0,0.027]
[1720780371267,1.4142007,57113.0,57112.0,0.027]
[1720780371469,1.29404742,57113.0,57112.0,0.027]
[1720780371702,1.64422942,57113.0,57112.0,0.027]
[1720780372135,1.87222942,57113.0,57112.0,0.0269447]
[1720780372403,1.87222942,57113.0,57112.0,0.014]
[1720780372404,1.67222942,57113.0,57112.0,0.014]
[1720780372569,1.84246682,57113.0,57112.0,0.014]
[1720780372769,2.04246682,57113.0,57112.0,0.02]
[1720780373109,1.84246682,57113.0,57112.0,0.006]
[1720780373313,1.63585,57112.0,57111.0,0.009086]
[1720780374461,1.63685,57112.0,57111.0,0.009086]
[1720780375261,1.8070874,57112.0,57111.0,0.009086]
[1720780375465,1.63685,57112.0,57111.0,0.009086]
[1720780377221,1.54064644,57112.0,57111.0,0.009086]
[1720780377413,1.74064644,57112.0,57111.0,0.009086]
[1720780378778,1.54064644,57112.0,57111.0,0.009086]
[1720780379866,1.74064644,57112.0,57111.0,0.009086]
[1720780380271,1.71088384,57112.0,57111.0,0.009086]
[1720780380545,1.54064644,57112.0,57111.0,0.009086]
[1720780380788,2.37553544,57112.0,57111.0,0.009086]
[1720780381607,2.19083544,57112.0,57111.0,0.009086]
[1720780382052,2.37553544,57112.0,57111.0,0.009086]
[1720780382795,1.84064644,57112.0,57111.0,0.009086]
[1720780382997,1.19045744,57112.0,57111.0,0.009086]
[1720780384257,0.176094,57112.0,57111.0,0.009086]
[1720780384462,0.001,57112.0,57111.0,0.009086]
[1720780384666,0.001,57112.0,57111.0,0.152686]
[1720780384667,0.176094,57112.0,57111.0,0.152686]
[1720780384837,0.526283,57112.0,57111.0,0.152686]
[1720780385099,0.876472,57112.0,57111.0,0.152686]
[1720780385807,0.876472,57112.0,57111.0,0.156686]
[1720780386618,0.875472,57112.0,57111.0,0.156686]
[1720780386837,0.876472,57112.0,57111.0,0.162686]
[1720780387636,0.876472,57112.0,57111.0,0.019086]
[1720780387637,1.35015809,57112.0,57111.0,0.019086]
[1720780388132,1.226661,57112.0,57111.0,0.019086]
[1720780399424,0.526283,57112.0,57111.0,0.019086]
[1720780399628,0.001,57112.0,57111.0,0.16094953]
[1720780400187,0.001,57112.0,57111.0,0.157886]
[1720780400398,0.176094,57112.0,57111.0,0.157886]
[1720780400622,0.876472,57112.0,57111.0,0.157886]
[1720780400843,1.31514069,57112.0,57111.0,0.157886]
[1720780401887,0.876472,57112.0,57111.0,0.157886]
[1720780402295,0.526283,57112.0,57111.0,0.157886]
[1720780402667,0.876472,57112.0,57111.0,0.157886]
[1720780403646,0.526283,57112.0,57111.0,0.157886]
[1720780404728,0.176094,57112.0,57111.0,0.157886]
[1720780405136,0.001,57112.0,57111.0,0.157886]
[1720780405340,0.001,57112.0,57111.0,0.80393985]
[1720780405571,0.001,57112.0,57111.0,0.683178]
[1720780405775,0.001,57112.0,57111.0,0.157886]
[1720780405970,0.001,57112.0,57111.0,0.16094953]
[1720780406125,0.526283,57112.0,57111.0,0.16094953]
[1720780406326,0.876472,57112.0,57111.0,0.157886]
[1720780406531,0.876472,57112.0,57111.0,0.151886]
[1720780406532,0.525283,57112.0,57111.0,0.151886]
[1720780406959,0.526283,57112.0,57111.0,0.165886]
[1720780407160,0.527113,57112.0,57111.0,0.151886]
[1720780407385,0.877302,57112.0,57111.0,0.151886]
[1720780408041,0.877302,57112.0,57111.0,0.147886]
[1720780408172,0.703208,57112.0,57111.0,0.159886]
[1720780408376,0.703208,57112.0,57111.0,0.172886]
[1720780408377,0.878302,57112.0,57111.0,0.172886]
[1720780408575,0.528113,57112.0,57111.0,0.172886]
[1720780408779,0.528113,57112.0,57111.0,0.159886]
[1720780409034,0.878302,57112.0,57111.0,0.159886]
[1720780409251,0.878302,57112.0,57111.0,0.168886]
[1720780409451,0.528113,57112.0,57111.0,0.168886]
[1720780409662,0.878302,57112.0,57111.0,0.168886]
[1720780412765,0.528113,57112.0,57111.0,0.168886]
[1720780414251,0.00283,57112.0,57111.0,0.168886]
[1720780414451,0.00283,57112.0,57111.0,1.14872425]
[1720780414682,0.00283,57112.0,57111.0,1.56242099]
[1720780415296,0.00283,57112.0,57111.0,1.55342099]
[1720780415517,0.00283,57112.0,57111.0,1.92661599]
[1720780415738,0.15722714,57130.0,57111.0,1.92661599]
[1720780415739,0.175047,57128.0,57124.0,0.21865]
[1720780415941,0.175047,57128.0,57124.0,0.1395]
[1720780416267,0.175047,57128.0,57125.0,0.00306353]
[1720780416473,0.175043,57129.0,57125.0,0.00306353]
[1720780416669,0.175043,57129.0,57126.0,0.22495]
[1720780416893,0.17504,57130.0,57127.0,0.00306353]
[1720780417433,0.17504,57130.0,57129.0,0.00306353]
[1720780417639,0.525118,57130.0,57129.0,0.00306353]
[1720780417789,0.175045,57128.0,57127.0,0.00306353]
[1720780418808,0.175045,57128.0,57126.0,0.1518]
[1720780419031,0.33398674,57131.0,57126.0,0.1518]
[1720780419232,0.00884143,57131.0,57128.0,0.00306353]
[1720780419438,0.175033,57132.0,57129.0,0.006]
[1720780419644,0.175038,57131.0,57130.0,0.00306353]
[1720780420000,0.175038,57131.0,57129.0,0.006]
[1720780420627,0.175038,57131.0,57129.0,0.005]
[1720780420831,0.175038,57131.0,57128.0,0.00306353]
[1720780421300,0.53383619,57132.0,57129.0,0.008]
[1720780421468,0.53383619,57132.0,57130.0,0.00306353]
[1720780421901,0.53383619,57132.0,57129.0,0.01106353]
[1720780421902,0.18376919,57132.0,57129.0,0.01106353]
[1720780422402,0.00873519,57132.0,57129.0,0.01106353]
[1720780422576,0.00873519,57132.0,57129.0,0.015]
[1720780422757,0.0015,57135.0,57133.0,0.175028]
[1720780423186,0.0015,57135.0,57134.0,0.746631]
[1720780423483,0.0015,57135.0,57134.0,1.446739]
[1720780423911,0.0015,57135.0,57134.0,1.017535]
[1720780424066,0.0015,57135.0,57134.0,1.096685]
[1720780424478,0.0015,57135.0,57134.0,0.317427]
[1720780425103,0.0015,57135.0,57134.0,0.321427]
[1720780425308,0.0015,57135.0,57134.0,0.1464]
[1720780425529,0.0015,57135.0,57134.0,0.321427]
[1720780426151,0.00145872,57135.0,57134.0,0.676481]
[1720780426358,0.00145872,57135.0,57134.0,0.755631]
[1720780426566,0.00145872,57135.0,57134.0,0.2619691]
[1720780426825,0.17648272,57135.0,57134.0,0.1514]
[1720780427063,0.52653072,57135.0,57134.0,0.1514]
[1720780427499,0.17648272,57135.0,57134.0,0.009]
[1720780427709,0.00145872,57135.0,57134.0,0.009]
[1720780428095,0.52653072,57135.0,57134.0,0.009]
[1720780428273,0.87657872,57135.0,57134.0,0.009]
[1720780429419,0.87657872,57135.0,57134.0,0.004]
[1720780429596,1.22662672,57135.0,57134.0,0.004]
[1720780429797,1.22662672,57135.0,57134.0,0.007]
[1720780430200,1.22662672,57135.0,57134.0,0.003]
[1720780430603,1.22662672,57135.0,57134.0,0.004]
[1720780431084,1.22662672,57135.0,57134.0,0.003]
[1720780431469,1.2354349,57135.0,57134.0,0.005]
[1720780431673,1.2604349,57135.0,57134.0,0.005]
[1720780431994,1.2604349,57135.0,57134.0,0.1474]
[1720780431995,0.9103869,57135.0,57134.0,0.1474]
[1720780432192,0.0352669,57135.0,57134.0,0.1474]
[1720780432370,0.02645872,57135.0,57134.0,0.416317]
[1720780432574,1.06057872,57135.0,57134.0,0.005]
[1720780432804,1.06057872,57135.0,57134.0,0.00123202]
[1720780432805,2.06067472,57135.0,57134.0,0.00123202]
[1720780432955,2.06067472,57135.0,57115.0,0.1424]
[1720780432956,0.350133,57121.0,57115.0,0.1424]
[1720780433166,0.53550672,57135.0,57115.0,0.1424]
[1720780433167,0.525237,57117.0,57116.0,0.00306353]
[1720780433368,0.875395,57117.0,57116.0,0.00306353]
[1720780433769,0.525246,57116.0,57115.0,0.1424]
[1720780434026,0.87541,57116.0,57115.0,0.1424]
[1720780434224,0.525246,57116.0,57115.0,0.1424]
[1720780434664,0.87541,57116.0,57115.0,0.1424]
[1720780435422,0.87541,57116.0,57115.0,0.1564]
[1720780435625,1.225574,57116.0,57115.0,0.014]
[1720780436156,1.225574,57116.0,57115.0,0.028]
[1720780436563,1.225574,57116.0,57115.0,0.014]
[1720780437014,0.350148,57119.0,57111.0,0.154186]
[1720780437015,0.875472,57112.0,57111.0,0.154186]
[1720780437512,1.225661,57112.0,57111.0,0.154186]
[1720780438277,1.225661,57112.0,57111.0,0.163186]
[1720780439095,1.225661,57112.0,57111.0,0.174186]
[1720780440000,0.175094,57113.0,57111.0,0.253336]
[1720780440269,0.175094,57112.0,57111.0,0.174186]
[1720780440480,0.875472,57112.0,57111.0,0.174186]
[1720780441158,0.875472,57112.0,57111.0,0.165186]
[1720780441361,0.875472,57112.0,57111.0,0.173186]
[1720780441920,0.875472,57112.0,57111.0,0.154186]
[1720780442246,0.875472,57112.0,57111.0,0.251336]
[1720780442487,0.525266,57114.0,57113.0,0.07915]
[1720780442656,0.175085,57115.0,57114.0,0.07915]
[1720780442856,0.00856356,57119.0,57111.0,0.253336]
[1720780443074,0.681085,57129.0,57111.0,0.253336]
[1720780443075,0.175091,57113.0,57112.0,0.00306353]
[1720780443680,0.175091,57113.0,57111.0,0.233336]
[1720780444039,0.175091,57113.0,57112.0,0.07915]
[1720780444240,0.175091,57113.0,57111.0,0.233336]
[1720780444719,0.175089,57114.0,57111.0,0.233336]
[1720780444918,0.175089,57114.0,57112.0,0.008]
[1720780445479,0.175092,57113.0,57112.0,0.009]
[1720780445890,0.175094,57112.0,57111.0,0.154186]
[1720780446600,0.175094,57112.0,57111.0,0.15410613]
[1720780446791,0.525283,57112.0,57111.0,0.15410613]
[1720780446905,0.875472,57112.0,57111.0,0.15410613]
[1720780447332,0.875472,57112.0,57111.0,0.16310613]
[1720780447791,0.875472,57112.0,57111.0,0.15410613]
[1720780448193,0.875472,57112.0,57111.0,0.16310613]
[1720780448514,0.875472,57112.0,57111.0,0.17510613]
[1720780448718,0.875472,57112.0,57111.0,0.16310613]
[1720780449120,0.875472,57112.0,57111.0,0.17410613]
[1720780451101,1.225661,57112.0,57111.0,0.17410613]
[1720780453343,1.225661,57112.0,57111.0,0.17310255]
[1720780453704,0.875472,57112.0,57111.0,0.17310255]
[1720780454722,0.875472,57112.0,57111.0,0.25225255]
[1720780455067,0.875472,57112.0,57111.0,0.17310255]
[1720780456618,0.79910424,57112.0,57111.0,0.17310255]
[1720780458166,0.79893424,57112.0,57111.0,0.17310255]
[1720780460840,0.44874524,57112.0,57111.0,0.25225255]
[1720780461083,0.031,57122.0,57111.0,0.25225255]
[1720780461084,0.15674868,57128.0,57118.0,0.1392]
[1720780461285,0.350072,57132.0,57121.0,0.07915]
[1720780461286,0.35012,57124.0,57121.0,0.07915]
[1720780461461,0.35012,57124.0,57118.0,0.1392]
[1720780461462,0.17507,57120.0,57118.0,0.1392]
[1720780461616,0.175073,57119.0,57118.0,0.1392]
[1720780462533,0.175067,57121.0,57118.0,0.1392]
[1720780462731,0.350127,57122.0,57118.0,0.1392]
[1720780462916,0.175067,57121.0,57118.0,0.1392]
[1720780463462,0.175071,57120.0,57118.0,0.1392]
[1720780463663,0.525219,57119.0,57118.0,0.1392]
[1720780463864,0.525219,57119.0,57118.0,0.1542]
[1720780464304,0.525219,57119.0,57118.0,0.1462]
[1720780464507,0.525219,57119.0,57118.0,0.1442]
[1720780464707,0.525219,57119.0,57118.0,0.1502]
[1720780464899,0.525219,57119.0,57118.0,0.1452]
[1720780465098,0.525219,57119.0,57118.0,0.1512]
[1720780465298,0.525219,57119.0,57118.0,0.1452]
[1720780465499,0.525219,57119.0,57118.0,0.1512]
[1720780467010,0.875365,57119.0,57118.0,0.1512]
[1720780467247,0.875365,57119.0,57118.0,0.012]
[1720780467410,0.87529076,57119.0,57118.0,0.012]
[1720780468809,0.66048268,57119.0,57118.0,0.012]
[1720780469015,0.525219,57119.0,57118.0,0.012]
[1720780469236,0.875365,57119.0,57118.0,0.012]
[1720780469481,0.525219,57119.0,57118.0,0.012]
[1720780471593,0.175073,57119.0,57118.0,0.012]
[1720780471772,0.175073,57119.0,57118.0,0.09115]
[1720780471991,0.525215,57120.0,57118.0,0.09115]
[1720780472380,0.525215,57120.0,57119.0,0.21905]
[1720780472571,0.175071,57120.0,57119.0,0.1399]
[1720780473822,0.350134,57121.0,57119.0,0.21905]
[1720780473823,0.175067,57121.0,57119.0,0.21905]
[1720780474025,0.175067,57121.0,57120.0,0.07915]
[1720780474971,0.350109,57125.0,57119.0,0.1449]
[1720780474972,0.00879427,57125.0,57121.0,0.07915]
[1720780475175,0.175056,57125.0,57121.0,0.07915]
[1720780475380,0.175056,57125.0,57119.0,0.314972]
[1720780475381,0.17506,57123.0,57119.0,0.14296353]
[1720780475799,0.525175,57124.0,57119.0,0.1399]
[1720780476039,0.525175,57124.0,57119.0,0.14296353]
[1720780476175,0.525175,57124.0,57119.0,0.14696353]
[1720780476603,0.525175,57124.0,57120.0,0.005]
[1720780477004,0.525175,57124.0,57119.0,0.1409]
[1720780477220,0.525175,57124.0,57119.0,0.14496353]
[1720780477451,0.175059,57124.0,57119.0,0.39818553]
[1720780477631,0.175059,57124.0,57121.0,0.07915]
[1720780477840,0.175055,57125.0,57121.0,0.07915]
[1720780478430,0.175055,57125.0,57120.0,0.001]
[1720780478431,0.175058,57124.0,57120.0,0.002]
[1720780479076,0.16629502,57127.0,57124.0,0.07915]
[1720780479396,0.00905446,57127.0,57124.0,0.07915]
[1720780479548,0.00905446,57127.0,57123.0,0.1459]
[1720780479549,0.35915146,57127.0,57123.0,0.1459]
[1720780479757,0.175052,57126.0,57123.0,0.1459]
[1720780480359,0.175052,57126.0,57124.0,0.007]
[1720780480562,0.175049,57127.0,57124.0,0.015]
[1720780480772,0.175049,57127.0,57123.0,0.22505]
[1720780481143,0.175049,57127.0,57123.0,0.23405]
[1720780481298,0.175049,57127.0,57123.0,0.24205]
[1720780481480,0.175049,57127.0,57123.0,0.23305]
[1720780481879,0.175046,57128.0,57124.0,0.07915]
[1720780482330,0.53399475,57129.0,57124.0,0.07915]
[1720780482930,0.53399475,57129.0,57124.0,0.08715]
[1720780483262,0.175045,57128.0,57123.0,0.22505]
[1720780483484,0.175045,57128.0,57124.0,0.005]
[1720780483656,0.175045,57128.0,57124.0,0.009]
[1720780484101,0.175045,57128.0,57124.0,0.005]
[1720780484288,0.175045,57128.0,57124.0,0.08415]
[1720780484615,0.175045,57128.0,57124.0,0.07915]
[1720780484816,0.18390575,57129.0,57124.0,0.07915]
[1720780485101,0.175043,57129.0,57124.0,0.07915]
[1720780485926,0.18376837,57130.0,57127.0,0.07915]
[1720780486311,0.00872737,57130.0,57129.0,0.175042]
[1720780486516,0.02583,57135.0,57133.0,0.175029]
[1720780486859,0.02583,57135.0,57132.0,0.254181]
[1720780486972,0.02583,57135.0,57134.0,0.07915]
[1720780487381,0.02583,57135.0,57134.0,0.747231]
[1720780488051,0.02583,57135.0,57134.0,0.318027]
[1720780488220,0.02583,57135.0,57134.0,0.397177]
[1720780488804,0.02583,57135.0,57134.0,0.747231]
[1720780489007,0.02583,57135.0,57134.0,0.668081]
[1720780489211,0.02583,57135.0,57134.0,0.318027]
[1720780489415,0.02583,57135.0,57134.0,0.321027]
[1720780489667,0.02583,57135.0,57134.0,1.5603693]
[1720780489841,0.02583,57135.0,57134.0,1.6424693]
[1720780490037,0.02583,57135.0,57134.0,1.6464693]
[1720780490639,0.02583,57135.0,57134.0,1.6434693]
[1720780490899,0.02583,57135.0,57134.0,1.6574693]
[1720780491065,0.02583,57135.0,57134.0,1.6534693]
[1720780491482,0.02583,57135.0,57134.0,1.6674693]
[1720780492090,0.02583,57135.0,57134.0,1.6534693]
[1720780493003,0.02583,57135.0,57134.0,1.529439]
[1720780493212,0.00083,57135.0,57134.0,1.193385]
[1720780493417,0.00083,57135.0,57134.0,0.843331]
[1720780493566,0.00083,57135.0,57134.0,1.207385]
[1720780494043,0.00083,57135.0,57134.0,1.193385]
[1720780494245,0.00083,57135.0,57134.0,0.143]
[1720780494509,0.00083,57135.0,57134.0,0.014]
[1720780494776,0.00083,57135.0,57134.0,0.028]
[1720780495707,0.175854,57135.0,57134.0,0.028]
[1720780495880,0.175854,57135.0,57134.0,0.014]
[1720780496281,0.175854,57135.0,57134.0,0.028]
[1720780496436,0.175854,57135.0,57134.0,0.014]
[1720780496639,0.175854,57135.0,57130.0,0.142]
[1720780496866,0.175854,57135.0,57134.0,0.012]
[1720780497073,0.175854,57135.0,57130.0,0.142]
[1720780497450,0.175854,57135.0,57134.0,0.008]
[1720780497649,0.175854,57135.0,57134.0,0.007]
[1720780497650,1.284998,57135.0,57134.0,0.007]
[1720780497853,1.384998,57135.0,57134.0,0.007]
[1720780499173,0.87518,57131.0,57130.0,0.008]
[1720780499370,0.87518,57131.0,57130.0,0.015]
[1720780499806,1.225252,57131.0,57130.0,0.015]
[1720780499978,1.225252,57131.0,57130.0,0.008]
[1720780500162,0.350072,57131.0,57121.0,0.07915]
[1720780500390,0.175056,57125.0,57121.0,0.07915]
[1720780501370,0.175056,57125.0,57112.0,0.07915]
[1720780501371,0.350133,57121.0,57112.0,0.07915]
[1720780501575,0.350111,57125.0,57108.0,0.08817788]
[1720780501576,0.031,57125.0,57115.0,0.1386]
[1720780501908,0.1,57130.0,57123.0,0.1386]
[1720780501909,0.1570463,57130.0,57123.0,0.1386]
[1720780502070,0.031,57133.0,57123.0,0.1386]
[1720780502071,0.175046,57128.0,57123.0,0.21775]
[1720780502279,0.175049,57127.0,57124.0,0.07915]
[1720780502494,0.350883,57135.0,57127.0,0.07915]
[1720780502495,0.5079293,57135.0,57127.0,0.07915]